fUSD/lending_fUSD_20240116
["ID","MTS","AMOUNT","RATE_DAILY","PERIOD"]
[311799204,1705410641228,-150.87795684,0.000229,2]
[311799206,1705410641238,-150.87795684,0.000229,2]
[311799208,1705410641249,-150.87795684,0.000229,2]
[311799210,1705410641259,-150.87795684,0.000229,2]
[311799212,1705410641268,-150.87795684,0.000229,2]
[311799214,1705410641279,-150.87795684,0.000229,2]
[311799215,1705410641288,-150.87795684,0.000229,2]
[311799216,1705410641299,-150.87795684,0.000229,2]
[311799217,1705410641311,-150.87795684,0.000229,2]
[311799218,1705410641321,-150.87795684,0.000229,2]
[311799219,1705410641331,-150.87795684,0.000229,2]
[311799220,1705410641341,-150.87795684,0.000229,2]
[311799222,1705410641350,-150.87795684,0.000229,2]
[311799224,1705410641359,-150.87795684,0.000229,2]
[311799226,1705410641369,-178.07907243,0.000229,2]
[311799228,1705410641378,-150.21386034,0.000229,2]
[311799230,1705410641387,-1079.70550939,0.00022903,2]
[311799232,1705410641396,-150.0,0.00022906,2]
[311799234,1705410641406,-150.0,0.00022908,2]
[311799236,1705410641414,-150.0,0.00022911,2]
[311799238,1705410641423,-150.0,0.00022913,2]
[311799240,1705410641432,-150.0,0.00022919,2]
[311799242,1705410641442,-150.0,0.00022921,2]
[311799243,1705410641451,-150.0,0.00022924,2]
[311799246,1705410641462,-150.0,0.0002293,2]
[311799247,1705410641471,-150.0,0.00022936,2]
[311799249,1705410641481,-150.0,0.00022938,2]
[311799252,1705410641492,-150.0,0.00022942,2]
[311799253,1705410641501,-150.0,0.00022946,2]
[311799256,1705410641511,-150.0,0.00022952,2]
[311799258,1705410641521,-150.0,0.00022967,2]
[311799259,1705410641531,-150.0,0.00022968,2]
[311799262,1705410641540,-150.0,0.00022969,2]
[311799263,1705410641550,-150.0,0.00022975,2]
[311799266,1705410641560,-4651.86755386,0.0002298,2]
[311799267,1705410641570,-150.0,0.00022981,2]
[311799270,1705410641580,-269.07257754,0.00022982,2]
[311799271,1705410641590,-150.0,0.00022985,2]
[311799274,1705410641600,-1335.85464418,0.00022988,2]
[311799330,1705410642152,-20.14535582,0.00022988,2]
[311799332,1705410642162,-2470.973,0.00022988,2]
[311799334,1705410642171,-385.0,0.00022988,2]
[311799336,1705410642182,-945.0,0.00022988,2]
[311799338,1705410642192,-251.177,0.00022988,2]
[311799340,1705410642202,-837.0,0.00022988,2]
[311799343,1705410642212,-1863.944,0.00022988,2]
[311799345,1705410642223,-3090.987,0.00022988,2]
[311799346,1705410642233,-1234.0,0.00022988,2]
[311799349,1705410642244,-1252.0,0.00022988,2]
[311799351,1705410642254,-530.896,0.00022988,2]
[311799353,1705410642263,-750.37,0.00022988,2]
[311799355,1705410642272,-999.097,0.00022988,2]
[311799391,1705410642541,-463.538,0.00022988,2]
[311799393,1705410642553,-625.693,0.00022988,2]
[311799395,1705410642563,-1932.0,0.00022988,2]
[311799398,1705410642573,-536.672,0.00022988,2]
[311799402,1705410642584,-873.88,0.00022988,2]
[311799404,1705410642594,-322.365,0.00022988,2]
[311799407,1705410642604,-241.673,0.00022988,2]
[311799411,1705410642614,-150.0,0.0002299,2]
[311799412,1705410642625,-155.6556456,0.00022997,2]
[311799415,1705410642635,-198.87132187,0.00022997,2]
[311799417,1705410642645,-2580.55567474,0.00022997,2]
[311799419,1705410642655,-467.67250831,0.00022997,2]
[311799421,1705410642665,-19028.4235894,0.00022997,2]
[311799423,1705410642674,-338.55890367,0.00022997,2]
[311799425,1705410642684,-767.5348565,0.00022997,2]
[311799427,1705410642694,-259.81123898,0.00022998,2]
[311799429,1705410642704,-156.58316391,0.00022998,2]
[311799431,1705410642714,-1456.04218727,0.00022998,2]
[311799433,1705410642725,-155.45470079,0.00022998,2]
[311799435,1705410642736,-342.03388694,0.00022998,2]
[311799437,1705410642746,-155.46221796,0.00022998,2]
[311799439,1705410642757,-21066.0093122,0.00022998,2]
[311799440,1705410642767,-893.4452724,0.00022998,2]
[311799442,1705410642778,-1043.1602198,0.00022998,2]
[311799445,1705410642789,-21496.4201544,0.00022999,2]
[311799447,1705410642799,-3295.05728793,0.00022999,2]
[311799448,1705410642810,-150.01,0.00022999,2]
[311799451,1705410642821,-300.0,0.00022999,2]
[311799453,1705410642831,-300.0,0.00022999,2]
[311799455,1705410642840,-300.0,0.00022999,2]
[311799457,1705410642851,-300.0,0.00022999,2]
[311799459,1705410642862,-300.0,0.00022999,2]
[311799461,1705410642873,-300.0,0.00022999,2]
[311799463,1705410642883,-300.0,0.00022999,2]
[311799465,1705410642892,-300.0,0.00022999,2]
[311799467,1705410642902,-300.0,0.00022999,2]
[311799469,1705410642911,-300.0,0.00022999,2]
[311799470,1705410642922,-300.0,0.00022999,2]
[311799473,1705410642932,-300.0,0.00022999,2]
[311799474,1705410642941,-300.0,0.00022999,2]
[311799475,1705410642951,-300.0,0.00022999,2]
[311799476,1705410642961,-300.0,0.00022999,2]
[311799477,1705410642970,-300.0,0.00022999,2]
[311799478,1705410642979,-300.0,0.00022999,2]
[311799479,1705410642989,-300.0,0.00022999,2]
[311799480,1705410642999,-300.0,0.00022999,2]
[311799482,1705410643010,-300.0,0.00022999,2]
[311799484,1705410643019,-300.0,0.00022999,2]
[311799486,1705410643028,-300.0,0.00022999,2]
[311799487,1705410643038,-300.0,0.00022999,2]
[311799490,1705410643048,-300.0,0.00022999,2]
[311799491,1705410643059,-300.0,0.00022999,2]
[311799493,1705410643070,-300.0,0.00022999,2]
[311799495,1705410643080,-300.0,0.00022999,2]
[311799497,1705410643090,-300.0,0.00022999,2]
[311799500,1705410643100,-300.0,0.00022999,2]
[311799501,1705410643110,-300.0,0.00022999,2]
[311799503,1705410643122,-300.0,0.00022999,2]
[311799505,1705410643132,-300.0,0.00022999,2]
[311799508,1705410643142,-1111779.12466372,0.00023,2]
[311799583,1705410643849,-862.78,0.00023,2]
[311799585,1705410643860,-1779.28274773,0.00023,2]
[311799587,1705410643872,-528.5269001,0.00023,2]
[311799590,1705410643883,-297.1035,0.00023,2]
[311799592,1705410643894,-680.54889996,0.00023,2]
[311799595,1705410643913,-397.63098387,0.00023,2]
[311799597,1705410643925,-1353.84,0.00023,2]
[311799610,1705410644029,-303.37669577,0.00023,2]
[311799612,1705410644040,-629.64240114,0.00023,2]
[311799614,1705410644053,-321.88887296,0.00023,2]
[311799616,1705410644063,-1139.11643078,0.00023,2]
[311799619,1705410644075,-301.83235067,0.00023,2]
[311799648,1705410645196,-642.24849473,0.00023,2]
[311799649,1705410645207,-364.69997,0.00023,2]
[311799650,1705410645218,-1939.55083878,0.00023,2]
[311799651,1705410645229,-1653.2790006,0.00023,2]
[311799652,1705410645244,-1288.47644143,0.00023,2]
[311799653,1705410645255,-2623.12427868,0.00023,2]
[311799654,1705410645267,-11721.73036525,0.00023,2]
[311799655,1705410645278,-46130.07600001,0.00023,2]
[311799746,1705410646251,-673.02276435,0.00022884,2]
[311799747,1705410646262,-5264.90015691,0.00023,2]
[311799748,1705410646275,-1319.84332467,0.00023,2]
[311799749,1705410646286,-7238.21716303,0.00023,2]
[311799750,1705410646298,-4554.70727346,0.00023,2]
[311799751,1705410646311,-5294.90000002,0.00023,2]
[311799752,1705410646323,-5214.07871839,0.00023,2]
[311799753,1705410646335,-1750.08934919,0.00023,2]
[311799755,1705410646351,-443.07349567,0.00023,2]
[311799757,1705410646363,-344.70301075,0.00023,2]
[311799760,1705410646375,-4626.67793979,0.00023,2]
[311799764,1705410646414,-37807.3862916,0.00023,2]
[311799765,1705410646433,-112525.33578151,0.00023,2]
[311799766,1705410647278,-1152.04552171,0.00022385,2]
[311799767,1705410647288,-220.34760172,0.00022884,2]
[311799768,1705410647297,-92.02514165,0.00022999,2]
[311799769,1705410647403,-524.75407392,0.00022999,2]
[311799770,1705410647444,-207.13314016,0.00022883,2]
[311799771,1705410647453,-150.35140749,0.00022999,2]
[311799772,1705410647471,-837.29649,0.00022999,2]
[311799773,1705410647514,-1076.6485287,0.00022999,2]
[311799774,1705410647607,-378.41523539,0.00022999,2]
[311799775,1705410647619,-235.56641078,0.00022999,2]
[311799776,1705410647629,-778419.02787044,0.00023,2]
[311799777,1705410647638,-848658.30062974,0.00023,2]
[311799778,1705410647649,-13275.07243779,0.00023,2]
[311799779,1705410647660,-1322.68616832,0.00023,2]
[311799780,1705410647671,-12944.31968767,0.00023,2]
[311799781,1705410647683,-17763.05520326,0.00023,2]
[311799782,1705410647694,-432.73981711,0.00023,2]
[311799783,1705410647765,-2455.04708258,0.00023,2]
[311799786,1705410665224,176.42,0.00020248,2]
[311799787,1705410668052,2308.9435,0.00021938,2]
[311799788,1705410834810,315.86,0.00021532,2]
[311799789,1705410842723,181.07,0.00021493,10]
[311799790,1705410843047,194.31,0.00021493,2]
[311799791,1705410843244,194.31,0.00021606,2]
[311799792,1705410844161,194.31,0.00021719,2]
[311799793,1705410844237,194.31,0.00021832,2]
[311799794,1705410844398,194.31,0.00021945,2]
[311799795,1705410845365,1000.0,0.00022,2]
[311799796,1705410959032,1000.0,0.00021225,2]
[311799797,1705411001747,162.16,0.00021411,2]
[311799798,1705411131043,175.13,0.0001924,2]
[311799799,1705411131104,175.13,0.00021503,2]
[311799800,1705411264428,294.8,0.00021118,2]
[311799801,1705411283653,161.78,0.00021278,2]
[311799813,1705411352942,158.25,0.00021114,2]
[311799814,1705411353165,158.25,0.00021536,2]
[311799815,1705411353366,158.25,0.00021958,2]
[311799816,1705411373237,200.0,0.00021107,2]
[311799817,1705411504941,5402.0,0.00022,2]
[311799818,1705411525590,1299.39599899,0.00021,2]
[311799819,1705411564356,206.0,0.00021782,2]
[311799822,1705411594651,165.64,0.00019196,2]
[311799823,1705411594888,165.64,0.0002146,2]
[311799837,1705411643442,2946.25066505,0.00022,2]
[311799838,1705411654430,2619.24962995,0.00022,2]
[311799839,1705411665869,524.62106045,0.00022,2]
[311799840,1705411674179,2137.08564927,0.00022,2]
[311799841,1705411691219,527.73969193,0.00022,2]
[311799843,1705411714117,206.0,0.00021782,2]
[311799853,1705411808448,291.47,0.00021152,2]
[311799854,1705411826079,160.18,0.00021134,2]
[311799855,1705411831494,763.59853721,0.00022,2]
[311799876,1705411831797,-981.98800468,0.00022001,2]
[311799877,1705411831812,-2284.83576,0.00022001,2]
[311799878,1705411831824,-3169.51258829,0.00022001,2]
[311799879,1705411831834,-150.0,0.00022001,2]
[311799880,1705411831844,-727.78,0.00022038,2]
[311799881,1705411831854,-150.0,0.00022038,2]
[311799882,1705411831863,-720.97,0.00022039,2]
[311799883,1705411831874,-4222.26704685,0.00022039,2]
[311799884,1705411831885,-499.99,0.0002204,2]
[311799885,1705411831894,-714.81,0.00022042,2]
[311799886,1705411831904,-725.3,0.00022043,2]
[311799887,1705411831914,-738.35,0.00022043,2]
[311799888,1705411831923,-718.7,0.00022045,2]
[311799889,1705411831933,-722.6,0.00022046,2]
[311799890,1705411831942,-713.17,0.00022049,2]
[311799891,1705411831951,-721.6,0.0002205,2]
[311799892,1705411831962,-468.63227857,0.0002205,2]
[311799893,1705411831971,-715.27,0.00022051,2]
[311799894,1705411831981,-710.07,0.00022053,2]
[311799895,1705411831991,-716.52,0.00022053,2]
[311799896,1705411832001,-1742.015,0.00022054,2]
[311799897,1705411832010,-318.05071848,0.00022055,2]
[311799898,1705411832020,-164.2189,0.00022055,2]
[311799899,1705411832029,-194.31,0.00022058,2]
[311799900,1705411832039,-500.0,0.00022061,2]
[311799901,1705411832048,-728.13,0.0002211,2]
[311799902,1705411832059,-291.47,0.00022131,2]
[311799903,1705411832069,-719.01,0.0002215,2]
[311799905,1705411832079,-2305.78252151,0.0002215,2]
[311799906,1705411832089,-738.08,0.00022153,2]
[311799907,1705411832098,-528.57068135,0.00022153,2]
[311799908,1705411832109,-156.15402987,0.00022153,2]
[311799909,1705411832118,-250.02290447,0.00022153,2]
[311799912,1705411832128,-270.89955582,0.00022153,2]
[311799915,1705411832137,-155.31369168,0.00022153,2]
[311799918,1705411832146,-155.0,0.00022153,2]
[311799920,1705411832155,-16512.43008311,0.00022153,2]
[311799923,1705411832168,-313.12930109,0.00022153,2]
[311799925,1705411832179,-518.31759666,0.00022153,2]
[311799927,1705411832190,-2590.28956418,0.00022153,2]
[311799931,1705411832227,-891.50050442,0.00022153,2]
[311799932,1705411832236,-986.88631019,0.00022153,2]
[311799933,1705411832247,-53.40160103,0.00022153,2]
[311799934,1705411832256,-651.69676628,0.00022153,2]
[311799935,1705411832269,-722.63029826,0.00022153,2]
[311799936,1705411832278,-156.68200812,0.00022153,2]
[311799937,1705411832287,-155.37256107,0.00022153,2]
[311799938,1705411832296,-418.55279683,0.00022153,2]
[311799939,1705411832307,-1374.0,0.00022153,2]
[311799940,1705411832319,-629.86,0.00022153,2]
[311799943,1705411832331,-916.16374982,0.00022153,2]
[311799945,1705411832340,-155.56428189,0.00022153,2]
[311799947,1705411832350,-155.63675847,0.00022153,2]
[311799949,1705411832359,-170.29594982,0.00022153,2]
[311799951,1705411832368,-269.50645635,0.00022153,2]
[311799952,1705411832377,-156.14275959,0.00022153,2]
[311799954,1705411832387,-156.61527588,0.00022153,2]
[311799956,1705411832396,-280.49475128,0.00022153,2]
[311799958,1705411832405,-156.81769853,0.00022153,2]
[311799960,1705411832415,-155.76324602,0.00022153,2]
[311799962,1705411832423,-241.79662679,0.00022153,2]
[311799964,1705411832433,-156.01463714,0.00022153,2]
[311799966,1705411832442,-155.36887452,0.00022153,2]
[311799968,1705411832452,-3111.90066036,0.00022153,2]
[311799971,1705411832477,-328.64192235,0.00022153,2]
[311799972,1705411832489,-822.06608361,0.00022153,2]
[311799973,1705411832498,-374.03521976,0.00022153,2]
[311799974,1705411832507,-196.155894,0.00022153,2]
[311799975,1705411832516,-244.22314293,0.00022153,2]
[311799976,1705411832526,-155.42252281,0.00022153,2]
[311799977,1705411832535,-155.47264453,0.00022153,2]
[311799978,1705411832544,-163.63015791,0.00022153,2]
[311799979,1705411832553,-234.66616213,0.00022153,2]
[311799980,1705411832565,-234.85086633,0.00022153,2]
[311799981,1705411832574,-2894.68220287,0.00022153,2]
[311799982,1705411832583,-2131.66263178,0.00022153,2]
[311799983,1705411832593,-3849.91637634,0.00022153,2]
[311799984,1705411832602,-351.85984881,0.00022153,2]
[311799985,1705411832612,-1970.50192539,0.00022153,2]
[311799986,1705411832622,-972.84147411,0.00022153,2]
[311799987,1705411832631,-295.00251173,0.00022153,2]
[311799988,1705411832641,-731.41,0.00022154,2]
[311799989,1705411832651,-521.17755723,0.00022154,2]
[311799990,1705411832661,-527.03240952,0.00022154,7]
[311799991,1705411832671,-135520.52934281,0.00022154,2]
[311799992,1705411832681,-733.51,0.00022155,2]
[311799993,1705411832690,-245000.0,0.00022155,2]
[311799994,1705411832700,-737.22,0.00022155,2]
[311799995,1705411832710,-194.31,0.00022172,2]
[311799996,1705411832720,-191.59750761,0.00022185,2]
[311799997,1705411832729,-275948.75936865,0.000222,2]
[311799998,1705411832741,-1610.71008395,0.000222,2]
[311799999,1705411832753,-421.90220378,0.000222,2]
[311800000,1705411832765,-134279.74815512,0.000222,2]
[311800001,1705411832890,-1042.36206145,0.000222,2]
[311800002,1705411832902,-2544.41892805,0.000222,2]
[311800003,1705411832915,-456.25811503,0.000222,2]
[311800004,1705411832953,-1419.47488724,0.000222,2]
[311800005,1705411832969,-658.46,0.000222,2]
[311800006,1705411832981,-624.13,0.000222,2]
[311800008,1705411837876,-86528.06306466,0.000222,2]
[311800009,1705411837885,-194.31,0.00022285,2]
[311800010,1705411837895,-800.0433,0.00022286,2]
[311800011,1705411837904,-1000.0,0.000223,2]
[311800012,1705411837914,-158.25,0.00022381,2]
[311800013,1705411837923,-736.12,0.00022385,2]
[311800014,1705411837933,-6664.8494,0.00022385,2]
[311800015,1705411837942,-720.68,0.00022385,2]
[311800016,1705411837952,-194.31,0.00022398,2]
[311800017,1705411837962,-821.51184599,0.000224,2]
[311800018,1705411837973,-982.40308415,0.000224,2]
[311800019,1705411837983,-195.25517109,0.000224,2]
[311800020,1705411837993,-768.0303478,0.000224,2]
[311800021,1705411838002,-821.51184599,0.00022445,2]
[311800022,1705411838012,-300.0,0.00022484,2]
[311800023,1705411838021,-304.35607287,0.00022484,2]
[311800024,1705411838031,-821.51184599,0.00022491,2]
[311800025,1705411838041,-12294.16339703,0.000225,2]
[311800026,1705411838051,-1000.0,0.000225,2]
[311800027,1705411838060,-822.91,0.000225,2]
[311800028,1705411838071,-329.17,0.000225,2]
[311800029,1705411838080,-1500.0,0.000225,2]
[311800030,1705411838089,-339.48,0.000225,2]
[311800031,1705411838098,-150.0,0.000225,2]
[311800032,1705411838108,-1764751.88836107,0.00022511,2]
[311800033,1705411838174,-1510.9760536,0.00022511,2]
[311800044,1705411838318,-456.35152185,0.00022511,2]
[311800046,1705411838329,-588.99961556,0.00022511,2]
[311800056,1705411838429,-591220.72240276,0.00022511,2]
[311800058,1705411838439,-194.31,0.00022511,2]
[311800060,1705411838449,-821.51184599,0.00022536,2]
[311800062,1705411838458,-821.51184599,0.00022582,2]
[311800064,1705411838468,-194.31,0.00022624,2]
[311800066,1705411838477,-821.51184599,0.00022627,2]
[311800068,1705411838487,-982.40308415,0.0002265,2]
[311800070,1705411838496,-768.0303478,0.0002265,2]
[311800072,1705411838504,-1374.75398796,0.00022659,2]
[311800074,1705411838514,-821.51184599,0.00022673,2]
[311800076,1705411838523,-28489.0,0.000227,2]
[311800078,1705411838532,-2764.0,0.000227,2]
[311800080,1705411838541,-821.51184599,0.00022718,2]
[311800082,1705411838551,-150.0,0.00022731,2]
[311800084,1705411838560,-194.31,0.00022737,2]
[311800086,1705411838570,-150.0,0.0002274,2]
[311800088,1705411838579,-150.0,0.00022741,2]
[311800090,1705411838588,-30122.44578783,0.00022743,2]
[311800092,1705411838598,-85560.21785735,0.00022743,2]
[311800094,1705411838608,-50000.0,0.00022743,2]
[311800096,1705411838617,-16974.82104094,0.00022743,2]
[311800098,1705411838627,-4292.29390268,0.00022743,2]
[311800100,1705411838637,-150.0,0.00022749,2]
[311800102,1705411838646,-821.51184599,0.00022764,2]
[311800103,1705411838655,-150.0,0.00022777,2]
[311800104,1705411838664,-150.0,0.00022783,2]
[311800105,1705411838673,-150.0,0.00022783,2]
[311800106,1705411838683,-150.0,0.00022788,2]
[311800107,1705411838691,-150.0,0.00022791,2]
[311800108,1705411838701,-250.0,0.000228,2]
[311800109,1705411838710,-1000.0,0.000228,3]
[311800110,1705411838719,-158.25,0.00022803,2]
[311800111,1705411838728,-19697.0,0.00022804,2]
[311800112,1705411838736,-835.0,0.00022804,2]
[311800113,1705411838745,-1852.0,0.00022804,2]
[311800114,1705411838754,-945.0,0.00022804,2]
[311800116,1705411838763,-1068.075,0.00022804,2]
[311800118,1705411838773,-821.51184599,0.00022809,2]
[311800120,1705411838782,-500.0,0.00022815,2]
[311800122,1705411838792,-200.0,0.00022815,2]
[311800124,1705411838801,-200.0,0.00022815,2]
[311800126,1705411838813,-500.0,0.00022816,2]
[311800128,1705411838824,-200.0,0.00022816,2]
[311800130,1705411838833,-200.0,0.00022816,2]
[311800132,1705411838844,-200.0,0.00022816,2]
[311800134,1705411838853,-150.0,0.00022817,2]
[311800136,1705411838863,-150.0,0.00022823,2]
[311800138,1705411838873,-150.0,0.00022836,2]
[311800140,1705411838882,-150.0,0.00022836,2]
[311800142,1705411838892,-150.0,0.00022843,2]
[311800144,1705411838901,-150.0,0.0002285,2]
[311800146,1705411838911,-194.31,0.0002285,2]
[311800148,1705411838921,-7999.99,0.00022854,3]
[311800150,1705411838931,-821.51184599,0.00022855,2]
[311800152,1705411838940,-150.0,0.00022858,2]
[311800154,1705411838950,-150.0,0.00022865,2]
[311800156,1705411838960,-1500.0,0.00022872,2]
[311800158,1705411838970,-150.0,0.00022874,2]
[311800160,1705411838979,-500.0,0.00022885,2]
[311800162,1705411838989,-500.0,0.00022885,2]
[311800164,1705411838998,-500.0,0.00022885,2]
[311800166,1705411839008,-500.0,0.00022885,2]
[311800168,1705411839018,-500.0,0.00022885,2]
[311800170,1705411839027,-500.0,0.00022885,2]
[311800172,1705411839036,-500.0,0.00022885,2]
[311800174,1705411839046,-500.0,0.00022885,2]
[311800177,1705411839058,-500.0,0.00022885,2]
[311800178,1705411839070,-500.0,0.00022885,2]
[311800180,1705411839079,-500.0,0.00022885,2]
[311800182,1705411839088,-500.0,0.00022885,2]
[311800184,1705411839096,-500.0,0.00022885,2]
[311800186,1705411839105,-500.0,0.00022885,2]
[311800188,1705411839115,-500.0,0.00022885,2]
[311800190,1705411839124,-500.0,0.00022885,2]
[311800192,1705411839132,-500.0,0.00022885,2]
[311800195,1705411839143,-500.0,0.00022885,2]
[311800196,1705411839152,-500.0,0.00022885,2]
[311800198,1705411839161,-508.5987,0.00022885,2]
[311800201,1705411839170,-500.0,0.00022885,2]
[311800202,1705411839179,-500.0,0.00022885,2]
[311800205,1705411839189,-500.0,0.00022885,2]
[311800207,1705411839198,-500.0,0.00022885,2]
[311800209,1705411839207,-500.0,0.00022885,2]
[311800210,1705411839216,-267.6575,0.00022885,2]
[311800212,1705411839225,-1000.0,0.00022885,2]
[311800214,1705411839233,-1000.0,0.00022885,2]
[311800216,1705411839243,-1000.0,0.00022885,2]
[311800218,1705411839252,-1000.0,0.00022885,2]
[311800220,1705411839262,-1000.0,0.00022885,2]
[311800222,1705411839271,-1000.0,0.00022885,2]
[311800224,1705411839280,-1000.0,0.00022885,2]
[311800226,1705411839289,-1000.0,0.00022885,2]
[311800228,1705411839298,-1000.0,0.00022885,2]
[311800230,1705411839307,-1000.0,0.00022885,2]
[311800232,1705411839319,-1000.0,0.00022885,2]
[311800234,1705411839328,-1000.0,0.00022885,2]
[311800236,1705411839338,-1000.0,0.00022885,2]
[311800238,1705411839348,-1000.0,0.00022885,2]
[311800240,1705411839357,-1000.0,0.00022885,2]
[311800242,1705411839366,-1000.0,0.00022885,2]
[311800244,1705411839375,-1000.0,0.00022885,2]
[311800246,1705411839384,-1000.0,0.00022885,2]
[311800248,1705411839394,-1000.0,0.00022885,2]
[311800250,1705411839403,-1000.0,0.00022885,2]
[311800252,1705411839412,-1000.0,0.00022885,2]
[311800254,1705411839421,-1000.0,0.00022885,2]
[311800256,1705411839430,-1000.0,0.00022885,2]
[311800258,1705411839439,-1000.0,0.00022885,2]
[311800260,1705411839447,-1000.0,0.00022885,2]
[311800262,1705411839457,-1000.0,0.00022885,2]
[311800264,1705411839466,-1000.0,0.00022885,2]
[311800267,1705411839475,-1000.0,0.00022885,2]
[311800269,1705411839485,-1000.0,0.00022885,2]
[311800270,1705411839494,-1000.0,0.00022885,2]
[311800273,1705411839504,-1000.0,0.00022885,2]
[311800275,1705411839514,-1000.0,0.00022885,2]
[311800276,1705411839523,-1000.0,0.00022885,2]
[311800278,1705411839532,-1000.0,0.00022885,2]
[311800280,1705411839542,-1000.0,0.00022885,2]
[311800282,1705411839551,-191.5975076,0.00022889,2]
[311800284,1705411839560,-150.0,0.00022891,2]
[311800286,1705411839570,-150.0,0.00022894,2]
[311800288,1705411839579,-68098.6767,0.00022898,2]
[311800290,1705411839589,-1000.0,0.00022898,2]
[311800293,1705411839598,-150.0,0.00022899,2]
[311800295,1705411839608,-5180.515325,0.000229,2]
[311800297,1705411839618,-27948.840992,0.000229,2]
[311800299,1705411839627,-2736.98342974,0.000229,2]
[311800300,1705411839636,-793.0,0.000229,2]
[311800303,1705411839645,-821.51184599,0.000229,2]
[311800305,1705411839655,-627286.0,0.000229,2]
[311800307,1705411839664,-150.0,0.000229,2]
[311800308,1705411839674,-982.40308415,0.000229,2]
[311800311,1705411839684,-768.0303478,0.000229,2]
[311800313,1705411839693,-150.0,0.00022908,2]
[311800315,1705411839702,-150.0,0.00022919,2]
[311800317,1705411839711,-150.0,0.00022928,2]
[311800319,1705411839721,-150.0,0.00022929,2]
[311800321,1705411839730,-150.0,0.00022929,2]
[311800323,1705411839739,-150.0,0.00022939,2]
[311800325,1705411839749,-150.0,0.00022951,2]
[311800327,1705411839759,-150.0,0.00022958,2]
[311800329,1705411839768,-150.0,0.00022959,2]
[311800331,1705411839777,-194.31,0.00022963,2]
[311800333,1705411839787,-1500.0,0.0002297,2]
[311800335,1705411839796,-150.0,0.00022972,2]
[311800337,1705411839805,-150.0,0.00022987,2]
[311800338,1705411839815,-712.19,0.00022987,2]
[311800340,1705411839825,-150.0,0.00022989,2]
[311800343,1705411839834,-996.0,0.00022989,2]
[311800344,1705411839843,-1930.0,0.00022989,2]
[311800346,1705411839853,-425.0,0.00022989,2]
[311800348,1705411839862,-318.0,0.00022989,2]
[311800351,1705411839872,-235.0,0.00022989,2]
[311800353,1705411839881,-879.0,0.00022989,2]
[311800355,1705411839891,-507.0,0.00022989,2]
[311800357,1705411839900,-5606.504,0.00022989,2]
[311800359,1705411839910,-4202.612,0.00022989,2]
[311800361,1705411839919,-42205.0,0.00022989,2]
[311800363,1705411839928,-222.545,0.00022989,2]
[311800365,1705411839937,-5888.336,0.00022989,2]
[311800367,1705411839947,-2904.0,0.00022989,2]
[311800368,1705411839956,-8131.481,0.00022989,2]
[311800370,1705411839965,-500.331,0.00022989,2]
[311800373,1705411839975,-2272.0,0.00022989,2]
[311800375,1705411839985,-150.0,0.00022991,2]
[311800377,1705411839996,-150.0,0.00022992,2]
[311800378,1705411840005,-371.98608374,0.00022996,2]
[311800380,1705411840016,-269.69370419,0.00022997,2]
[311800382,1705411840027,-309.89054984,0.00022997,2]
[311800385,1705411840036,-254.7545,0.00022997,2]
[311800386,1705411840045,-178.74270135,0.00022998,2]
[311800388,1705411840055,-165.83204317,0.00022998,2]
[311800390,1705411840067,-397.21856661,0.00022998,2]
[311800392,1705411840076,-833136.38301985,0.00022998,2]